fUSD/lending_fUSD_20250607
["ID","MTS","AMOUNT","RATE_DAILY","PERIOD"]
[364845230,1749271849626,-480.0,0.00027397,5]
[364845231,1749271849636,-482.43772779,0.00027397,5]
[364845232,1749271849645,-492.18677217,0.00027397,5]
[364845233,1749271849655,-480.0,0.00027397,5]
[364845234,1749271849664,-480.0,0.00027397,5]
[364845235,1749271849675,-491.7457715,0.00027397,5]
[364845236,1749271849684,-480.0,0.00027397,5]
[364845237,1749271849694,-520.68171362,0.00027397,5]
[364845238,1749271849704,-497.6411766,0.00027397,5]
[364845239,1749271849714,-1020.898316,0.00027397,7]
[364845240,1749271849727,-1020.898316,0.00027397,7]
[364845241,1749271849736,-1020.898316,0.00027397,7]
[364845242,1749271849746,-151.0,0.00027397,7]
[364845243,1749271849755,-204.107327,0.00027397,7]
[364845244,1749271849765,-1020.898316,0.00027397,7]
[364845245,1749271849775,-1020.898316,0.00027397,7]
[364845246,1749271849785,-1020.898306,0.00027397,7]
[364845247,1749271849795,-480.0,0.00027397,5]
[364845248,1749271849807,-480.0,0.00027397,5]
[364845249,1749271849818,-480.0,0.00027397,5]
[364845250,1749271849827,-483.29720452,0.00027397,5]
[364845251,1749271849836,-426.84645408,0.00027397,5]
[364845252,1749271849848,-480.0,0.00027397,5]
[364845253,1749271849858,-584.09837853,0.00027397,5]
[364845254,1749271849869,-507.01,0.00027397,5]
[364845255,1749271849879,-855.54,0.00027397,5]
[364845256,1749271849888,-480.0,0.00027397,5]
[364845257,1749271849898,-480.0,0.00027397,5]
[364845258,1749271849908,-480.0,0.00027397,5]
[364845259,1749271849918,-549.32840579,0.00027397,5]
[364845260,1749271849927,-480.0,0.00027397,5]
[364845261,1749271849936,-480.0,0.00027397,5]
[364845262,1749271849945,-480.0,0.00027397,5]
[364845263,1749271849954,-480.0,0.00027397,5]
[364845264,1749271849963,-484.65494655,0.00027397,5]
[364845265,1749271849971,-480.0,0.00027397,5]
[364845266,1749271849980,-480.0,0.00027397,5]
[364845267,1749271849990,-480.0,0.00027397,5]
[364845268,1749271849999,-151.0,0.00027397,7]
[364845269,1749271850009,-498.61095277,0.00027397,5]
[364845270,1749271850018,-151.0,0.00027397,7]
[364845271,1749271850027,-151.0,0.00027397,7]
[364845272,1749271850037,-480.0,0.00027397,5]
[364845273,1749271850047,-432.30071169,0.00027397,5]
[364845274,1749271850056,-480.0,0.00027397,5]
[364845275,1749271850066,-480.0,0.00027397,2]
[364845276,1749271850075,-1791.8,0.00027397,5]
[364845277,1749271850084,-480.0,0.00027397,5]
[364845278,1749271850094,-511.82,0.00027397,5]
[364845279,1749271850103,-480.0,0.00027397,5]
[364845280,1749271850112,-480.0,0.00027397,5]
[364845281,1749271850121,-474.83599662,0.00027397,5]
[364845282,1749271850131,-480.0,0.00027397,5]
[364845283,1749271850140,-480.0,0.00027397,5]
[364845284,1749271850149,-480.0,0.00027397,5]
[364845285,1749271850158,-1091.25,0.00027397,5]
[364845286,1749271850167,-480.0,0.00027397,5]
[364845287,1749271850176,-480.0,0.00027397,5]
[364845288,1749271850185,-496.77805165,0.00027397,5]
[364845289,1749271850194,-480.0,0.00027397,5]
[364845290,1749271850203,-480.0,0.00027397,5]
[364845291,1749271850212,-480.0,0.00027397,5]
[364845292,1749271850221,-151.0,0.00027397,7]
[364845293,1749271850231,-775.27,0.00027397,5]
[364845294,1749271850240,-151.0,0.00027397,7]
[364845295,1749271850250,-499.8827556,0.00027397,5]
[364845296,1749271850259,-480.0,0.00027397,5]
[364845297,1749271850268,-480.0,0.00027397,5]
[364845298,1749271850278,-979.252661,0.00027397,7]
[364845299,1749271850286,-480.0,0.00027397,5]
[364845300,1749271850296,-979.252661,0.00027397,7]
[364845301,1749271850305,-979.252661,0.00027397,7]
[364845302,1749271850315,-342.42443047,0.00027397,5]
[364845303,1749271850324,-480.0,0.00027397,5]
[364845304,1749271850333,-566.93,0.00027397,5]
[364845305,1749271850343,-574.27,0.00027397,5]
[364845306,1749271850352,-480.0,0.00027397,5]
[364845307,1749271850361,-486.09126929,0.00027397,5]
[364845308,1749271850370,-511.2964648,0.00027397,5]
[364845309,1749271850379,-225.7,0.00027397,5]
[364845310,1749271850388,-979.252661,0.00027397,7]
[364845311,1749271850398,-979.252661,0.00027397,7]
[364845312,1749271850408,-171.18724239,0.00027397,5]
[364845313,1749271850417,-979.25265298,0.00027397,7]
[364845314,1749271850427,-480.0,0.00027397,5]
[364845315,1749271850437,-295.22800815,0.00027397,5]
[364845316,1749271850447,-480.0,0.00027397,5]
[364845317,1749271850457,-480.0,0.00027397,5]
[364845318,1749271850466,-480.0,0.00027397,5]
[364845319,1749271850475,-480.0,0.00027397,5]
[364845320,1749271850485,-480.87981901,0.00027397,2]
[364845321,1749271850494,-1070.8,0.00027397,5]
[364845322,1749271850504,-480.0,0.00027397,5]
[364845323,1749271850514,-480.0,0.00027397,5]
[364845324,1749271850524,-480.0,0.00027397,5]
[364845325,1749271850534,-480.0,0.00027397,5]
[364845326,1749271850543,-486.16993969,0.00027397,5]
[364845327,1749271850552,-480.0,0.00027397,5]
[364845328,1749271850561,-480.0,0.00027397,5]
[364845329,1749271850570,-480.0,0.00027397,5]
[364845330,1749271850579,-484.13160525,0.00027397,5]
[364845331,1749271850589,-480.0,0.00027397,5]
[364845332,1749271850598,-480.0,0.00027397,5]
[364845333,1749271850608,-480.0,0.00027397,5]
[364845334,1749271850617,-480.0,0.00027397,5]
[364845335,1749271850627,-480.0,0.00027397,5]
[364845336,1749271850637,-480.0,0.00027397,5]
[364845337,1749271850646,-300.0,0.00027397,5]
[364845338,1749271850656,-434.5505268,0.00027397,5]
[364845339,1749271850666,-480.0,0.00027397,5]
[364845340,1749271850676,-480.0,0.00027397,5]
[364845341,1749271850686,-692.39,0.00027397,5]
[364845342,1749271850696,-151.0,0.00027397,7]
[364845343,1749271850706,-151.0,0.00027397,7]
[364845344,1749271850716,-151.0,0.00027397,7]
[364845345,1749271850730,-151.0,0.00027397,7]
[364845346,1749271850739,-151.0,0.00027397,7]
[364845347,1749271850749,-1218.21,0.00027397,5]
[364845348,1749271850758,-480.0,0.00027397,5]
[364845349,1749271850768,-586.58,0.00027397,5]
[364845350,1749271850778,-480.0,0.00027397,5]
[364845351,1749271850787,-961.55,0.00027397,5]
[364845352,1749271850799,-480.0,0.00027397,5]
[364845353,1749271850808,-559.82,0.00027397,5]
[364845354,1749271850818,-155.16629765,0.00027397,5]
[364845355,1749271850827,-480.0,0.00027397,5]
[364845356,1749271850837,-480.0,0.00027397,5]
[364845357,1749271850846,-480.0,0.00027397,5]
[364845358,1749271850855,-485.27,0.00027397,5]
[364845359,1749271850864,-480.0,0.00027397,5]
[364845360,1749271850874,-480.0,0.00027397,5]
[364845361,1749271850883,-995.81,0.00027397,5]
[364845362,1749271850893,-480.0,0.00027397,5]
[364845363,1749271850902,-480.0,0.00027397,5]
[364845364,1749271850912,-480.0,0.00027397,5]
[364845365,1749271850921,-480.0,0.00027397,5]
[364845366,1749271850931,-480.0,0.00027397,5]
[364845367,1749271850940,-480.0,0.00027397,5]
[364845368,1749271850950,-320.779785,0.00027397,7]
[364845369,1749271850960,-320.779785,0.00027397,7]
[364845370,1749271850969,-482.16696901,0.00027397,5]
[364845371,1749271850979,-320.779785,0.00027397,7]
[364845372,1749271850989,-320.779785,0.00027397,7]
[364845373,1749271850999,-812.05,0.00027397,5]
[364845374,1749271851009,-480.0,0.00027397,5]
[364845375,1749271851019,-151.0,0.00027397,7]
[364845376,1749271851029,-151.0,0.00027397,7]
[364845377,1749271851039,-480.0,0.00027397,5]
[364845378,1749271851049,-480.0,0.00027397,5]
[364845379,1749271851060,-151.0,0.00027397,7]
[364845380,1749271851069,-480.0,0.00027397,5]
[364845381,1749271851079,-320.779785,0.00027397,7]
[364845382,1749271851088,-320.779785,0.00027397,7]
[364845383,1749271851098,-320.779785,0.00027397,7]
[364845384,1749271851108,-320.779781,0.00027397,7]
[364845385,1749271851118,-480.0,0.00027397,5]
[364845386,1749271851128,-487.50923536,0.00027397,5]
[364845387,1749271851137,-713.0,0.00027397,5]
[364845388,1749271851148,-496.73570632,0.00027397,5]
[364845389,1749271851157,-540.32311789,0.00027397,5]
[364845390,1749271851167,-480.0,0.00027397,5]
[364845391,1749271851176,-677.81,0.00027397,5]
[364845392,1749271851186,-480.0,0.00027397,5]
[364845393,1749271851196,-480.0,0.00027397,5]
[364845394,1749271851206,-480.0,0.00027397,5]
[364845395,1749271851215,-480.0,0.00027397,5]
[364845396,1749271851225,-480.0,0.00027397,5]
[364845397,1749271851235,-480.0,0.00027397,5]
[364845398,1749271851244,-480.0,0.00027397,5]
[364845399,1749271851254,-627.85,0.00027397,5]
[364845400,1749271851264,-480.0,0.00027397,5]
[364845401,1749271851273,-480.0,0.00027397,5]
[364845402,1749271851283,-525.61,0.00027397,5]
[364845403,1749271851294,-480.0,0.00027397,5]
[364845404,1749271851304,-480.0,0.00027397,5]
[364845405,1749271851315,-480.0,0.00027397,5]
[364845406,1749271851324,-828.19,0.00027397,5]
[364845407,1749271851334,-480.0,0.00027397,5]
[364845408,1749271851344,-172.32450229,0.00027397,5]
[364845409,1749271851354,-480.0,0.00027397,5]
[364845410,1749271851363,-490.86418564,0.00027397,5]
[364845411,1749271851373,-480.0,0.00027397,5]
[364845412,1749271851383,-480.0,0.00027397,5]
[364845413,1749271851393,-480.0,0.00027397,5]
[364845414,1749271851403,-480.0,0.00027397,5]
[364845415,1749271851413,-985.76,0.00027397,5]
[364845416,1749271851423,-503.30597813,0.00027397,5]
[364845417,1749271851433,-486.80380295,0.00027397,5]
[364845418,1749271851443,-586.32,0.00027397,5]
[364845419,1749271851453,-480.0,0.00027397,5]
[364845420,1749271851463,-486.19511733,0.00027397,5]
[364845421,1749271851472,-480.0,0.00027397,5]
[364845422,1749271851482,-480.0,0.00027397,5]
[364845423,1749271851492,-480.0,0.00027397,5]
[364845424,1749271851502,-514.25464342,0.00027397,5]
[364845425,1749271851512,-480.0,0.00027397,5]
[364845426,1749271851523,-480.0,0.00027397,5]
[364845427,1749271851533,-151.0,0.00027397,7]
[364845428,1749271851543,-151.0,0.00027397,7]
[364845429,1749271851553,-391.51288326,0.00027397,5]
[364845430,1749271851563,-480.0,0.00027397,5]
[364845431,1749271851573,-500.0,0.00027397,5]
[364845432,1749271851583,-480.0,0.00027397,5]
[364845433,1749271851593,-500.0,0.00027397,5]
[364845434,1749271851603,-480.0,0.00027397,5]
[364845435,1749271851612,-509.52110975,0.00027397,5]
[364845436,1749271851622,-480.0,0.00027397,5]
[364845437,1749271851632,-480.0,0.00027397,5]
[364845438,1749271851642,-480.0,0.00027397,5]
[364845439,1749271851652,-480.0,0.00027397,5]
[364845440,1749271851662,-480.0,0.00027397,5]
[364845441,1749271851672,-954.5,0.00027397,5]
[364845442,1749271851682,-480.0,0.00027397,5]
[364845443,1749271851692,-480.0,0.00027397,5]
[364845444,1749271851702,-480.0,0.00027397,5]
[364845445,1749271851712,-480.0,0.00027397,5]
[364845446,1749271851725,-480.0,0.00027397,5]
[364845447,1749271851736,-632.14,0.00027397,5]
[364845448,1749271851746,-603.55255205,0.00027397,5]
[364845449,1749271851756,-546.31471662,0.00027397,5]
[364845450,1749271851767,-480.0,0.00027397,5]
[364845451,1749271851777,-480.0,0.00027397,5]
[364845452,1749271851787,-1163.81,0.00027397,5]
[364845453,1749271851798,-151.0,0.00027397,7]
[364845454,1749271851808,-151.0,0.00027397,7]
[364845455,1749271851818,-614.26,0.00027397,5]
[364845456,1749271851828,-480.0,0.00027397,5]
[364845457,1749271851838,-151.0,0.00027397,7]
[364845458,1749271851848,-508.08,0.00027397,5]
[364845459,1749271851858,-778.95,0.00027397,5]
[364845460,1749271851868,-493.03550905,0.00027397,5]
[364845461,1749271851878,-480.0,0.00027397,5]
[364845462,1749271851889,-480.0,0.00027397,5]
[364845463,1749271851899,-691.53,0.00027397,5]
[364845464,1749271851910,-500.0,0.00027397,5]
[364845465,1749271851920,-480.0,0.00027397,5]
[364845466,1749271851930,-500.0,0.00027397,5]
[364845467,1749271851940,-500.0,0.00027397,5]
[364845468,1749271851950,-500.0,0.00027397,5]
[364845469,1749271851960,-708.16,0.00027397,5]
[364845470,1749271851970,-480.0,0.00027397,5]
[364845471,1749271851980,-480.0,0.00027397,5]
[364845472,1749271851989,-480.0,0.00027397,5]
[364845473,1749271852000,-151.0,0.00027397,7]
[364845474,1749271852010,-151.0,0.00027397,7]
[364845475,1749271852020,-1154.57,0.00027397,5]
[364845476,1749271852031,-480.0,0.00027397,5]
[364845477,1749271852040,-151.0,0.00027397,7]
[364845478,1749271852050,-151.0,0.00027397,7]
[364845479,1749271852060,-151.0,0.00027397,7]
[364845480,1749271852070,-480.0,0.00027397,5]
[364845481,1749271852080,-480.0,0.00027397,5]
[364845482,1749271852090,-722.25,0.00027397,5]
[364845483,1749271852101,-480.0,0.00027397,5]
[364845484,1749271852111,-509.42927945,0.00027397,5]
[364845485,1749271852120,-480.0,0.00027397,5]
[364845486,1749271852131,-480.0,0.00027397,5]
[364845487,1749271852140,-480.0,0.00027397,5]
[364845488,1749271852150,-480.0,0.00027397,5]
[364845489,1749271852160,-355.82049876,0.00027397,5]
[364845490,1749271852169,-945.46,0.00027397,5]
[364845491,1749271852179,-480.0,0.00027397,5]
[364845492,1749271852189,-814.9,0.00027397,5]
[364845493,1749271852199,-480.0,0.00027397,5]
[364845494,1749271852209,-257.879614,0.00027397,7]
[364845495,1749271852219,-257.879614,0.00027397,7]
[364845496,1749271852230,-257.879614,0.00027397,7]
[364845497,1749271852240,-806.49,0.00027397,5]
[364845498,1749271852250,-257.879614,0.00027397,7]
[364845499,1749271852260,-257.879614,0.00027397,7]
[364845500,1749271852270,-1082.33,0.00027397,5]
[364845501,1749271852280,-508.32764207,0.00027397,5]
[364845502,1749271852290,-1384.68,0.00027397,5]
[364845503,1749271852300,-257.879614,0.00027397,7]
[364845504,1749271852311,-257.879614,0.00027397,7]
[364845505,1749271852321,-257.879614,0.00027397,7]
[364845506,1749271852331,-257.879614,0.00027397,7]
[364845507,1749271852341,-257.879612,0.00027397,7]
[364845508,1749271852351,-480.0,0.00027397,5]
[364845509,1749271852361,-480.0,0.00027397,5]
[364845510,1749271852372,-480.0,0.00027397,5]
[364845511,1749271852382,-480.0,0.00027397,5]
[364845512,1749271852392,-500.00740803,0.00027397,5]
[364845513,1749271852403,-567.93,0.00027397,5]
[364845514,1749271852412,-631.27,0.00027397,5]
[364845515,1749271852423,-480.0,0.00027397,5]
[364845516,1749271852433,-450.37785265,0.00027397,5]
[364845517,1749271852443,-737.8,0.00027397,5]
[364845518,1749271852454,-480.0,0.00027397,5]
[364845519,1749271852464,-1442.29,0.00027397,5]
[364845520,1749271852474,-412.821898,0.00027397,7]
[364845521,1749271852484,-412.821898,0.00027397,7]
[364845522,1749271852494,-412.821898,0.00027397,7]
[364845523,1749271852505,-480.0,0.00027397,5]
[364845524,1749271852515,-540.21917309,0.00027397,5]
[364845525,1749271852525,-480.0,0.00027397,5]
[364845526,1749271852537,-386.78537358,0.00027397,5]
[364845527,1749271852547,-480.0,0.00027397,5]
[364845528,1749271852557,-412.821898,0.00027397,7]
[364845529,1749271852567,-1936.11,0.00027397,5]
[364845530,1749271852578,-412.821898,0.00027397,7]
[364845531,1749271852588,-427.63098731,0.00027397,5]
[364845532,1749271852598,-412.821907,0.00027397,7]
[364845533,1749271852609,-428.45265322,0.00027397,5]
[364845534,1749271852619,-480.0,0.00027397,5]
[364845535,1749271852629,-480.0,0.00027397,5]
[364845536,1749271852639,-480.0,0.00027397,5]
[364845537,1749271852650,-480.0,0.00027397,5]
[364845538,1749271852660,-325.5077297,0.00027397,5]
[364845539,1749271852671,-480.0,0.00027397,5]
[364845540,1749271852681,-151.0,0.00027397,7]
[364845541,1749271852691,-480.0,0.00027397,5]
[364845542,1749271852701,-151.0,0.00027397,7]
[364845543,1749271852710,-151.0,0.00027397,7]
[364845544,1749271852721,-488.49537533,0.00027397,5]
[364845545,1749271852732,-482.90756565,0.00027397,5]
[364845546,1749271852742,-480.0,0.00027397,5]
[364845547,1749271852752,-480.0,0.00027397,5]
[364845548,1749271852763,-151.0,0.00027397,7]
[364845549,1749271852773,-151.0,0.00027397,7]
[364845550,1749271852783,-601.8,0.00027397,5]
[364845551,1749271852793,-480.0,0.00027397,5]
[364845552,1749271852804,-563.87939294,0.00027397,5]
[364845553,1749271852814,-391.70791515,0.00027397,5]
[364845554,1749271852824,-844.42,0.00027397,5]
[364845555,1749271852834,-495.20755165,0.00027397,5]
[364845556,1749271852844,-480.0,0.00027397,5]
[364845557,1749271852854,-930.43,0.00027397,5]
[364845558,1749271852864,-492.16538455,0.00027397,5]
[364845559,1749271852874,-480.0,0.00027397,5]
[364845560,1749271852884,-583.54533055,0.00027397,5]
[364845561,1749271852894,-480.0,0.00027397,5]
[364845562,1749271852905,-623.80910127,0.00027397,5]
[364845563,1749271852915,-484.09000498,0.00027397,5]
[364845564,1749271852925,-853.62,0.00027397,5]
[364845565,1749271852935,-483.53787066,0.00027397,5]
[364845566,1749271852945,-956.19,0.00027397,5]
[364845567,1749271852954,-492.84153575,0.00027397,5]
[364845568,1749271852964,-480.0,0.00027397,5]
[364845569,1749271852974,-482.96009987,0.00027397,5]
[364845570,1749271852984,-350.5594619,0.00027397,5]
[364845571,1749271852994,-487.54544254,0.00027397,5]
[364845572,1749271853003,-444.52636198,0.00027397,5]
[364845573,1749271853015,-366.6385592,0.00027397,5]
[364845574,1749271853026,-488.01892616,0.00027397,5]
[364845575,1749271853035,-480.0,0.00027397,5]
[364845576,1749271853045,-480.0,0.00027397,5]
[364845577,1749271853055,-480.0,0.00027397,5]
[364845578,1749271853065,-798.33,0.00027397,5]
[364845579,1749271853075,-179.05386841,0.00027397,5]
[364845580,1749271853085,-910.02,0.00027397,5]
[364845581,1749271853095,-480.0,0.00027397,5]
[364845582,1749271853104,-487.22877357,0.00027397,5]
[364845583,1749271853114,-480.0,0.00027397,5]
[364845584,1749271853124,-455.65952385,0.00027397,5]
[364845585,1749271853134,-374.25215662,0.00027397,5]
[364845586,1749271853144,-486.50055348,0.00027397,5]
[364845587,1749271853153,-480.0,0.00027397,5]
[364845588,1749271853164,-984.27,0.00027397,5]
[364845589,1749271853419,-1000.0,0.00027397,5]
[364845590,1749271853442,-480.0,0.00027397,5]
[364845591,1749271853452,-289.123123,0.00027397,7]
[364845592,1749271853462,-478.32202349,0.00027397,5]
[364845593,1749271853471,-289.123123,0.00027397,7]
[364845594,1749271853481,-289.123123,0.00027397,7]
[364845595,1749271853494,-480.0,0.00027397,5]
[364845596,1749271853505,-480.0,0.00027397,5]
[364845597,1749271853516,-480.0,0.00027397,5]
[364845598,1749271853527,-482.95809485,0.00027397,5]
[364845599,1749271853537,-487.22014676,0.00027397,5]
[364845600,1749271853548,-489.21583851,0.00027397,5]
[364845601,1749271853558,-289.123123,0.00027397,7]
[364845602,1749271853568,-289.123123,0.00027397,7]
[364845603,1749271853578,-488.52046706,0.00027397,5]
[364845604,1749271853588,-480.0,0.00027397,5]
[364845605,1749271853598,-480.0,0.00027397,5]
[364845606,1749271853609,-289.123117,0.00027397,7]
[364845607,1749271853619,-480.0,0.00027397,5]
[364845608,1749271853629,-483.61602611,0.00027397,5]
[364845609,1749271853639,-480.0,0.00027397,5]
[364845610,1749271853649,-1719.89,0.00027397,5]
[364845611,1749271853659,-480.0,0.00027397,5]
[364845612,1749271853674,-250.98606653,0.00027397,5]
[364845613,1749271853685,-151.0,0.00027397,7]
[364845614,1749271853694,-151.0,0.00027397,7]
[364845615,1749271853704,-151.0,0.00027397,7]
[364845616,1749271853715,-151.0,0.00027397,7]
[364845617,1749271853726,-480.0,0.00027397,5]
[364845618,1749271853735,-151.0,0.00027397,7]
[364845619,1749271853745,-480.0,0.00027397,5]
[364845620,1749271853754,-480.0,0.00027397,5]
[364845621,1749271853764,-491.01134746,0.00027397,5]
[364845622,1749271853775,-490.86607536,0.00027397,5]
[364845623,1749271853787,-151.0,0.00027397,7]
[364845624,1749271853798,-480.0,0.00027397,5]
[364845625,1749271853809,-151.0,0.00027397,7]
[364845626,1749271853820,-151.0,0.00027397,7]
[364845627,1749271853830,-180.30311,0.00027397,7]
[364845628,1749271853841,-480.0,0.00027397,5]
[364845629,1749271853850,-964.13,0.00027397,5]
[364845630,1749271853860,-516.91233471,0.00027397,5]
[364845631,1749271853871,-480.0,0.00027397,5]
[364845632,1749271853882,-480.0,0.00027397,5]
[364845633,1749271853892,-248.05098619,0.00027397,5]
[364845634,1749271853903,-471.19927273,0.00027397,5]
[364845635,1749271853913,-619.63,0.00027397,5]
[364845636,1749271853924,-483.02628075,0.00027397,5]
[364845637,1749271853934,-489.832948,0.00027397,5]
[364845638,1749271853944,-250.0,0.00027397,5]
[364845639,1749271853955,-614.65,0.00027397,5]
[364845640,1749271853965,-480.0,0.00027397,5]
[364845641,1749271853976,-480.0,0.00027397,5]
[364845642,1749271853986,-480.0,0.00027397,5]
[364845643,1749271853997,-620.28,0.00027397,5]
[364845644,1749271854007,-497.98438443,0.00027397,5]
[364845645,1749271854017,-269.22639665,0.00027397,5]
[364845646,1749271854029,-483.88069244,0.00027397,5]
[364845647,1749271854040,-480.0,0.00027397,5]
[364845648,1749271854051,-480.0,0.00027397,5]
[364845649,1749271854061,-480.0,0.00027397,5]
[364845650,1749271854074,-489.3188391,0.00027397,5]
[364845651,1749271854085,-480.0,0.00027397,5]
[364845652,1749271854095,-398.6754245,0.00027397,5]
[364845653,1749271854105,-457.8609667,0.00027397,5]
[364845654,1749271854115,-480.0,0.00027397,5]
[364845655,1749271854124,-480.0,0.00027397,5]
[364845656,1749271854134,-480.0,0.00027397,5]
[364845657,1749271854148,-422.39032245,0.00027397,5]
[364845658,1749271854158,-383.976827,0.00027397,5]
[364845659,1749271854169,-480.0,0.00027397,5]
[364845660,1749271854178,-480.0,0.00027397,5]
[364845661,1749271854188,-480.0,0.00027397,5]
[364845662,1749271854198,-480.0,0.00027397,5]
[364845663,1749271854208,-427.33262794,0.00027397,5]
[364845664,1749271854217,-480.0,0.00027397,5]
[364845665,1749271854227,-480.0,0.00027397,5]
[364845666,1749271854236,-480.0,0.00027397,5]
[364845667,1749271854246,-480.0,0.00027397,5]
[364845668,1749271854256,-489.66624717,0.00027397,5]
[364845669,1749271854267,-488.5673688,0.00027397,5]
[364845670,1749271854276,-959.52,0.00027397,5]
[364845671,1749271854286,-480.0,0.00027397,5]
[364845672,1749271854296,-480.0,0.00027397,5]
[364845673,1749271854305,-552.99500692,0.00027397,5]
[364845674,1749271854315,-867.98,0.00027397,5]
[364845675,1749271854324,-495.79627939,0.00027397,5]
[364845676,1749271854335,-607.29,0.00027397,5]
[364845677,1749271854347,-480.0,0.00027397,5]
[364845678,1749271854358,-480.0,0.00027397,5]
[364845679,1749271854368,-426.52207562,0.00027397,5]
[364845680,1749271854379,-481.61,0.00027397,5]
[364845681,1749271854388,-2181.17,0.00027397,5]
[364845682,1749271854398,-1813.57,0.00027397,5]
[364845683,1749271854408,-550.60390058,0.00027397,5]
[364845684,1749271854418,-480.0,0.00027397,5]
[364845685,1749271854428,-501.35379227,0.00027397,5]
[364845686,1749271854439,-484.06509942,0.00027397,5]
[364845687,1749271854451,-480.0,0.00027397,5]
[364845688,1749271854462,-480.0,0.00027397,5]
[364845689,1749271854472,-480.0,0.00027397,5]
[364845690,1749271854482,-10000.0,0.00027397,7]
[364845691,1749271854492,-480.0,0.00027397,5]
[364845692,1749271854502,-10000.0,0.00027397,7]
[364845693,1749271854512,-10000.0,0.00027397,7]
[364845694,1749271854522,-346.74172017,0.00027397,5]
[364845695,1749271854532,-10000.0,0.00027397,7]
[364845696,1749271854541,-200.305346,0.00027397,7]
[364845697,1749271854551,-10000.0,0.00027397,7]
[364845698,1749271854561,-480.0,0.00027397,5]
[364845699,1749271854571,-200.305346,0.00027397,7]
[364845700,1749271854581,-10000.0,0.00027397,7]
[364845701,1749271854592,-1015.97,0.00027397,5]
[364845702,1749271854601,-200.305346,0.00027397,7]
[364845703,1749271854612,-497.33998453,0.00027397,5]
[364845704,1749271854622,-200.305346,0.00027397,7]
[364845705,1749271854633,-5750.84,0.00027397,5]
[364845706,1749271854643,-1473.87,0.00027397,5]
[364845707,1749271854653,-158.963046,0.00027397,5]
[364845708,1749271854662,-10000.0,0.00027397,7]
[364845709,1749271854672,-674.63,0.00027397,5]
[364845710,1749271854682,-10000.0,0.00027397,7]
[364845711,1749271854694,-486.27741131,0.00027397,5]
[364845712,1749271854704,-151.0,0.00027397,7]
[364845713,1749271854714,-10000.0,0.00027397,7]
[364845714,1749271854727,-151.0,0.00027397,7]
[364845715,1749271854737,-10000.0,0.00027397,7]
[364845716,1749271854746,-151.0,0.00027397,7]
[364845717,1749271854757,-10000.0,0.00027397,7]
[364845718,1749271854767,-151.0,0.00027397,7]
[364845719,1749271854776,-8337.83895014,0.00027397,7]
[364845720,1749271855219,-1122.9312622,0.00027397,7]
[364845721,1749271855232,-539.22978766,0.00027397,7]
[364845722,1749271855244,-89.21846234,0.00027397,7]
[364845723,1749271855821,-155.0,0.00027347,2]
[364845724,1749271855832,-111.08688366,0.00027397,7]
[364845725,1749271855843,-483.18649482,0.00027397,5]
[364845726,1749271855852,-151.0,0.00027397,7]
[364845727,1749271855861,-200.305346,0.00027397,7]
[364845728,1749271855871,-200.305346,0.00027397,7]
[364845729,1749271855880,-1254.32,0.00027397,5]